Workbook

Sheet Synthèse
B4: Libellé | C4: Valeur à saisir
B5: Date de l'opération
B6: Montant investi / désinvesti
B7: ISIN
B8: Compte concerné
B9: Frais de transaction

Sheet PEA Binck
B2: Intitulé | C2: Isin | D2: Ticker Bloomberg | E2: Nbr de parts | F2: Dernière cotation en devise locale | G2: Devise | H2: Dernière cotation en Euros | I2: Date | J2: Somme en compte | K2: Prix Moyen d'Achat | L2: +/- Value Latente | M2: Variation %
B3: Liquidités | O3: Actions | P3: =(J6+J7+J9+J10+J14+J12)/Tableau1[[#Totals],[Somme en compte]] -> 90.36%
B4: Espèces EUR | J4: 4,897.20 € | O4: Obligations | P4: 0.00%
B5: Actions | O5: Autre | P5: =J8/Tableau1[[#Totals],[Somme en compte]] -> 2.87%
B6: GDF Suez | C6: FR0010208488 | D6: GSZ:FP | E6: 250 | F6: 19.28 | G6: EUR | I6: 29/04/2015 | J6: =Tableau1[[#This Row],[Nbr de parts]]*Tableau1[[#This Row],[Dernière cotation en devise locale]] -> 4,820.00 € | O6: Liquidités | P6: =$J$4/Tableau1[[#Totals],[Somme en compte]] -> 6.78%
B7: Peugeot SA | C7: FR0000121501 | D7: UG:FP | E7: 570 | F7: 16.76 | G7: EUR | I7: 4212300.00% | J7: =Tableau1[[#This Row],[Nbr de parts]]*Tableau1[[#This Row],[Dernière cotation en devise locale]] -> 9,550.35 € | O7: Non classifié | P7: 0.00%
B8: Peugeot SA 7.50 Call W 29.04,2017 | C8: FR0011832237 | D8: UGBS:FP | E8: 570 | F8: 3.63 | G8: EUR | I8: 4212300.00% | J8: =Tableau1[[#This Row],[Nbr de parts]]*Tableau1[[#This Row],[Dernière cotation en devise locale]] -> 2,070.24 € | P8: =SUM(P3:P7) -> 100.00%
B9: Total SA | C9: FR0000120271 | D9: FP:FP | E9: 160 | F9: 49.05 | G9: EUR | I9: 4212300.00% | J9: =Tableau1[[#This Row],[Nbr de parts]]*Tableau1[[#This Row],[Dernière cotation en devise locale]] -> 7,848.00 €
B10: Veolia Environnement SA | C10: FR0000124141 | D10: VIE:FP | E10: 520 | F10: 19.35 | G10: EUR | I10: 4212300.00% | J10: =Tableau1[[#This Row],[Nbr de parts]]*Tableau1[[#This Row],[Dernière cotation en devise locale]] -> 10,062.00 €
B11: Trackers
B12: Lyxor ETF MSCI World EURO | C12: FR0010315770 | D12: WLD:FP | E12: 150 | F12: 164.62 | G12: EUR | I12: 4212300.00% | J12: =Tableau1[[#This Row],[Nbr de parts]]*Tableau1[[#This Row],[Dernière cotation en devise locale]] -> 24,693.00 €
B13: OPCVM
A14: * | B14: Renaissance Europe | C14: FR0000295230 | D14: RENSEUR:FP | E14: 60 | F14: 138.33 | G14: EUR | I14: 4212100.00% | J14: =Tableau1[[#This Row],[Nbr de parts]]*Tableau1[[#This Row],[Dernière cotation en devise locale]] -> 8,299.80 €
B15: Total | J15: =SUBTOTAL(109,Tableau1[Somme en compte]) -> 72,240.59 €
B17: Allocation d'actif
A23: *

Sheet AVie Boursorama
B2: Intitulé | C2: Isin | D2: ID morningstar | E2: Nbr de parts | F2: Dernière cotation en devise locale | G2: Devise | H2: Dernière cotation en Euros | I2: Date | J2: Somme en compte | K2: Prix Moyen d'Achat | L2: +/- Value Latente | M2: Variation % | N2: Colonne1
B3: Liquidités (disponibles)
B4: Espèces EUR | G4: EUR | H4: =IF(Tableau1363[[#This Row],[Devise]]="EUR",Tableau1363[[#This Row],[Dernière cotation en devise locale]],0) -> 0 | J4: 0
B5: Fonds Euro
B6: Fonds en euros Eurossima | J6: 924.77 € | K6: 924.77 € | M6: =Tableau1363[[#This Row],[Dernière cotation en Euros]]/Tableau1363[[#This Row],[Prix Moyen d''Achat]]-1 -> -100.00%
B7: Fonds Euro Exclusif | J7: 939.82 € | K7: 939.82 € | M7: =Tableau1363[[#This Row],[Dernière cotation en Euros]]/Tableau1363[[#This Row],[Prix Moyen d''Achat]]-1 -> -100.00%
B8: Actions (en direct)
J9: =Tableau1363[[#This Row],[Nbr de parts]]*Tableau1363[[#This Row],[Dernière cotation en Euros]] -> 0 | L9: =Tableau1363[[#This Row],[Nbr de parts]]*Tableau1363[[#This Row],[Dernière cotation en devise locale]]-Tableau1363[[#This Row],[Nbr de parts]]*Tableau1363[[#This Row],[Prix Moyen d''Achat]] -> 0 | M9: =Tableau1363[[#This Row],[Dernière cotation en Euros]]/Tableau1363[[#This Row],[Prix Moyen d''Achat]]-1 -> 
B10: Obligations (en direct)
J11: =Tableau1363[[#This Row],[Nbr de parts]]*Tableau1363[[#This Row],[Dernière cotation en Euros]] -> 0 | L11: =Tableau1363[[#This Row],[Nbr de parts]]*Tableau1363[[#This Row],[Dernière cotation en devise locale]]-Tableau1363[[#This Row],[Nbr de parts]]*Tableau1363[[#This Row],[Prix Moyen d''Achat]] -> 0 | M11: =Tableau1363[[#This Row],[Dernière cotation en Euros]]/Tableau1363[[#This Row],[Prix Moyen d''Achat]]-1 -> 
B12: Trackers
B13: LYXOR UC.ETF MSCI EMU GR | C13: FR0010168765 | D13: 0P0000191U | E13: 5.9954 | F13: 116.72 | G13: EUR | I13: 13/05/2015 | J13: =Tableau1363[[#This Row],[Nbr de parts]]*Tableau1363[[#This Row],[Dernière cotation en Euros]] -> 0 | K13: 121.08 € | L13: =Tableau1363[[#This Row],[Nbr de parts]]*Tableau1363[[#This Row],[Dernière cotation en devise locale]]-Tableau1363[[#This Row],[Nbr de parts]]*Tableau1363[[#This Row],[Prix Moyen d''Achat]] -> -26.14 € | M13: =Tableau1363[[#This Row],[Dernière cotation en Euros]]/Tableau1363[[#This Row],[Prix Moyen d''Achat]]-1 -> -100.00% | N13: http://www.morningstar.fr/includes/images/styleboxlg3.gif
B14: LYXOR UCITS ETF MSCI EMU | C14: FR0010168781 | D14: 0P0000191V | E14: 5.6433 | F14: 127.83 | G14: EUR | I14: 13/05/2015 | J14: =Tableau1363[[#This Row],[Nbr de parts]]*Tableau1363[[#This Row],[Dernière cotation en Euros]] -> 0 | K14: 133.15 € | L14: 0 | M14: =Tableau1363[[#This Row],[Dernière cotation en Euros]]/Tableau1363[[#This Row],[Prix Moyen d''Achat]]-1 -> -100.00% | N14: http://www.morningstar.fr/includes/images/styleboxlg1.gif
B15: LYXOR UCITS ETF MSCI WOR | C15: FR0010315770 | D15: 0P00005ZG6 | E15: 16.0537 | F15: 158.71 | G15: EUR | I15: 13/05/2015 | J15: =Tableau1363[[#This Row],[Nbr de parts]]*Tableau1363[[#This Row],[Dernière cotation en Euros]] -> 0 | K15: 163.82 € | L15: =Tableau1363[[#This Row],[Nbr de parts]]*Tableau1363[[#This Row],[Dernière cotation en devise locale]]-Tableau1363[[#This Row],[Nbr de parts]]*Tableau1363[[#This Row],[Prix Moyen d''Achat]] -> -82.03 € | M15: =Tableau1363[[#This Row],[Dernière cotation en Euros]]/Tableau1363[[#This Row],[Prix Moyen d''Achat]]-1 -> -100.00% | N15: http://www.morningstar.fr/includes/images/styleboxlg2.gif
B16: OPCVM
B17: FS Asia Pacific Leaders | C17: GB00B2PDRR36 | D17: F0000023SK | E17: 163.116 | F17: 2.17 | G17: EUR | I17: 14/05/2015 | J17: =Tableau1363[[#This Row],[Nbr de parts]]*Tableau1363[[#This Row],[Dernière cotation en Euros]] -> 0 | K17: 1.84 € | L17: =Tableau1363[[#This Row],[Nbr de parts]]*Tableau1363[[#This Row],[Dernière cotation en devise locale]]-Tableau1363[[#This Row],[Nbr de parts]]*Tableau1363[[#This Row],[Prix Moyen d''Achat]] -> 53.83 € | M17: =Tableau1363[[#This Row],[Dernière cotation en Euros]]/Tableau1363[[#This Row],[Prix Moyen d''Achat]]-1 -> -100.00% | N17: http://www.morningstar.fr/includes/images/styleboxlg3.gif
B18: Magellan | C18: FR0000292278 | D18: F0GBR04QCJ | E18: 33.0866 | F18: 22.45 | G18: EUR | I18: 13/05/2015 | J18: =Tableau1363[[#This Row],[Nbr de parts]]*Tableau1363[[#This Row],[Dernière cotation en Euros]] -> 0 | K18: 21.73 € | L18: =Tableau1363[[#This Row],[Nbr de parts]]*Tableau1363[[#This Row],[Dernière cotation en devise locale]]-Tableau1363[[#This Row],[Nbr de parts]]*Tableau1363[[#This Row],[Prix Moyen d''Achat]] -> 23.82 € | M18: =Tableau1363[[#This Row],[Dernière cotation en Euros]]/Tableau1363[[#This Row],[Prix Moyen d''Achat]]-1 -> -100.00% | N18: http://www.morningstar.fr/includes/images/styleboxlg3.gif
B19: Moneta Multi Caps C | C19: FR0010298596 | D19: F0GBR06TFP | E19: 1.6522 | F19: 226.88 | G19: EUR | I19: 4234300.00% | J19: =Tableau1363[[#This Row],[Nbr de parts]]*Tableau1363[[#This Row],[Dernière cotation en Euros]] -> 0 | K19: 182.48 € | L19: =Tableau1363[[#This Row],[Nbr de parts]]*Tableau1363[[#This Row],[Dernière cotation en devise locale]]-Tableau1363[[#This Row],[Nbr de parts]]*Tableau1363[[#This Row],[Prix Moyen d''Achat]] -> 73.36 € | M19: =Tableau1363[[#This Row],[Dernière cotation en Euros]]/Tableau1363[[#This Row],[Prix Moyen d''Achat]]-1 -> -100.00% | N19: http://www.morningstar.fr/includes/images/styleboxlg2.gif
B20: REIT
J21: =Tableau1363[[#This Row],[Nbr de parts]]*Tableau1363[[#This Row],[Dernière cotation en Euros]] -> 0 | L21: =Tableau1363[[#This Row],[Nbr de parts]]*Tableau1363[[#This Row],[Dernière cotation en devise locale]]-Tableau1363[[#This Row],[Nbr de parts]]*Tableau1363[[#This Row],[Prix Moyen d''Achat]] -> 0 | M21: =Tableau1363[[#This Row],[Dernière cotation en Euros]]/Tableau1363[[#This Row],[Prix Moyen d''Achat]]-1 -> 
B22: Autre
J23: =Tableau1363[[#This Row],[Nbr de parts]]*Tableau1363[[#This Row],[Dernière cotation en Euros]] -> 0 | L23: =Tableau1363[[#This Row],[Nbr de parts]]*Tableau1363[[#This Row],[Dernière cotation en devise locale]]-Tableau1363[[#This Row],[Nbr de parts]]*Tableau1363[[#This Row],[Prix Moyen d''Achat]] -> 0 | M23: =Tableau1363[[#This Row],[Dernière cotation en Euros]]/Tableau1363[[#This Row],[Prix Moyen d''Achat]]-1 -> 
A24: * | B24: Total | J24: =SUBTOTAL(109,Tableau1363[Somme en compte]) -> 1,864.59 € | L24: =SUBTOTAL(109,Tableau1363[+/- Value Latente]) -> 42.83 €
B26: Allocation d'actif

Sheet AVie Fortuneo
B2: Intitulé | C2: Isin | D2: ID morningstar | E2: Nbr de parts | F2: Dernière cotation en devise locale | G2: Devise | H2: Dernière cotation en Euros | I2: Date | J2: Somme en compte | K2: Prix Moyen d'Achat | L2: +/- Value Latente | M2: Variation %
B3: Liquidités (disponibles)
B4: Espèces EUR | G4: EUR | H4: =IF(Tableau13636[[#This Row],[Devise]]="EUR",Tableau13636[[#This Row],[Dernière cotation en devise locale]],0) -> 0 | J4: 0
B5: Fonds Euro
B6: Fonds en euros SURAVENIR OPPORTUNITES | F6: 352.83 | G6: EUR | H6: =IF(Tableau13636[[#This Row],[Devise]]="EUR",Tableau13636[[#This Row],[Dernière cotation en devise locale]],0) -> 352.83 | J6: 352.83 € | K6: 352.83 € | L6: =Tableau13636[[#This Row],[Nbr de parts]]*Tableau13636[[#This Row],[Dernière cotation en devise locale]]-Tableau13636[[#This Row],[Nbr de parts]]*Tableau13636[[#This Row],[Prix Moyen d''Achat]] -> 0 | M6: =Tableau13636[[#This Row],[Dernière cotation en Euros]]/Tableau13636[[#This Row],[Prix Moyen d''Achat]]-1 -> 0.00%
B7: Actions (en direct)
H8: =IF(Tableau13636[[#This Row],[Devise]]="EUR",Tableau13636[[#This Row],[Dernière cotation en devise locale]],0) -> 0 | J8: =Tableau13636[[#This Row],[Nbr de parts]]*Tableau13636[[#This Row],[Dernière cotation en Euros]] -> 0 | L8: =Tableau13636[[#This Row],[Nbr de parts]]*Tableau13636[[#This Row],[Dernière cotation en devise locale]]-Tableau13636[[#This Row],[Nbr de parts]]*Tableau13636[[#This Row],[Prix Moyen d''Achat]] -> 0 | M8: =Tableau13636[[#This Row],[Dernière cotation en Euros]]/Tableau13636[[#This Row],[Prix Moyen d''Achat]]-1 -> 
B9: Obligations (en direct)
H10: =IF(Tableau13636[[#This Row],[Devise]]="EUR",Tableau13636[[#This Row],[Dernière cotation en devise locale]],0) -> 0 | J10: =Tableau13636[[#This Row],[Nbr de parts]]*Tableau13636[[#This Row],[Dernière cotation en Euros]] -> 0 | L10: =Tableau13636[[#This Row],[Nbr de parts]]*Tableau13636[[#This Row],[Dernière cotation en devise locale]]-Tableau13636[[#This Row],[Nbr de parts]]*Tableau13636[[#This Row],[Prix Moyen d''Achat]] -> 0 | M10: =Tableau13636[[#This Row],[Dernière cotation en Euros]]/Tableau13636[[#This Row],[Prix Moyen d''Achat]]-1 -> 
B11: Trackers
H12: =IF(Tableau13636[[#This Row],[Devise]]="EUR",Tableau13636[[#This Row],[Dernière cotation en devise locale]],0) -> 0 | J12: =Tableau13636[[#This Row],[Nbr de parts]]*Tableau13636[[#This Row],[Dernière cotation en Euros]] -> 0 | M12: =Tableau13636[[#This Row],[Dernière cotation en Euros]]/Tableau13636[[#This Row],[Prix Moyen d''Achat]]-1 -> 
B13: OPCVM
B14: CPR CROISSANCE REACTIVE P | C14: FR0010097683 | D14: F0GBR04CBX | E14: 0.1189 | F14: 494.34 | G14: EUR | H14: =IF(Tableau13636[[#This Row],[Devise]]="EUR",Tableau13636[[#This Row],[Dernière cotation en devise locale]],0) -> 494.34 | I14: 28/04/2015 | J14: =Tableau13636[[#This Row],[Nbr de parts]]*Tableau13636[[#This Row],[Dernière cotation en Euros]] -> 58.78 € | K14: 418.41 € | L14: =Tableau13636[[#This Row],[Nbr de parts]]*Tableau13636[[#This Row],[Dernière cotation en devise locale]]-Tableau13636[[#This Row],[Nbr de parts]]*Tableau13636[[#This Row],[Prix Moyen d''Achat]] -> 9.03 € | M14: =Tableau13636[[#This Row],[Dernière cotation en Euros]]/Tableau13636[[#This Row],[Prix Moyen d''Achat]]-1 -> 18.15%
B15: RENAISSANCE EUROPE C | C15: FR0000295230 | D15: F0GBR04QCK | E15: 0.4540 | F15: 135.67 | G15: EUR | H15: =IF(Tableau13636[[#This Row],[Devise]]="EUR",Tableau13636[[#This Row],[Dernière cotation en devise locale]],0) -> 135.67 | I15: 28/04/2015 | J15: =Tableau13636[[#This Row],[Nbr de parts]]*Tableau13636[[#This Row],[Dernière cotation en Euros]] -> 61.59 € | K15: 109.70 € | L15: =Tableau13636[[#This Row],[Nbr de parts]]*Tableau13636[[#This Row],[Dernière cotation en devise locale]]-Tableau13636[[#This Row],[Nbr de parts]]*Tableau13636[[#This Row],[Prix Moyen d''Achat]] -> 11.79 € | M15: =Tableau13636[[#This Row],[Dernière cotation en Euros]]/Tableau13636[[#This Row],[Prix Moyen d''Achat]]-1 -> 23.67%
B16: Moneta Multi Caps C | C16: FR0010298596 | D16: F0GBR06TFP | E16: 0.2644 | F16: 232.71 | G16: EUR | H16: =IF(Tableau13636[[#This Row],[Devise]]="EUR",Tableau13636[[#This Row],[Dernière cotation en devise locale]],0) -> 232.71 | I16: 28/04/2015 | J16: =Tableau13636[[#This Row],[Nbr de parts]]*Tableau13636[[#This Row],[Dernière cotation en Euros]] -> 61.53 € | K16: 188.25 € | L16: =Tableau13636[[#This Row],[Nbr de parts]]*Tableau13636[[#This Row],[Dernière cotation en devise locale]]-Tableau13636[[#This Row],[Nbr de parts]]*Tableau13636[[#This Row],[Prix Moyen d''Achat]] -> 11.76 € | M16: =Tableau13636[[#This Row],[Dernière cotation en Euros]]/Tableau13636[[#This Row],[Prix Moyen d''Achat]]-1 -> 23.62%
B17: REIT
H18: =IF(Tableau13636[[#This Row],[Devise]]="EUR",Tableau13636[[#This Row],[Dernière cotation en devise locale]],0) -> 0 | J18: =Tableau13636[[#This Row],[Nbr de parts]]*Tableau13636[[#This Row],[Dernière cotation en Euros]] -> 0 | L18: =Tableau13636[[#This Row],[Nbr de parts]]*Tableau13636[[#This Row],[Dernière cotation en devise locale]]-Tableau13636[[#This Row],[Nbr de parts]]*Tableau13636[[#This Row],[Prix Moyen d''Achat]] -> 0 | M18: =Tableau13636[[#This Row],[Dernière cotation en Euros]]/Tableau13636[[#This Row],[Prix Moyen d''Achat]]-1 -> 
B19: Autre
H20: =IF(Tableau13636[[#This Row],[Devise]]="EUR",Tableau13636[[#This Row],[Dernière cotation en devise locale]],0) -> 0 | J20: =Tableau13636[[#This Row],[Nbr de parts]]*Tableau13636[[#This Row],[Dernière cotation en Euros]] -> 0 | L20: =Tableau13636[[#This Row],[Nbr de parts]]*Tableau13636[[#This Row],[Dernière cotation en devise locale]]-Tableau13636[[#This Row],[Nbr de parts]]*Tableau13636[[#This Row],[Prix Moyen d''Achat]] -> 0 | M20: =Tableau13636[[#This Row],[Dernière cotation en Euros]]/Tableau13636[[#This Row],[Prix Moyen d''Achat]]-1 -> 
A21: * | B21: Total | J21: =SUBTOTAL(109,Tableau13636[Somme en compte]) -> 534.73 € | L21: =SUBTOTAL(109,Tableau13636[+/- Value Latente]) -> 32.57 €
B23: Allocation d'actif

Sheet AVie Lixea Spirit
B2: Intitulé | C2: Isin | D2: ID morningstar | E2: Nbr de parts | F2: Dernière cotation en devise locale | G2: Devise | H2: Dernière cotation en Euros | I2: Date | J2: Somme en compte | K2: Prix Moyen d'Achat | L2: +/- Value Latente | M2: Variation %
B3: Liquidités (disponibles)
B4: Espèces EUR | G4: EUR | H4: =IF(Tableau136369[[#This Row],[Devise]]="EUR",Tableau136369[[#This Row],[Dernière cotation en devise locale]],0) -> 0 | J4: 0
B5: Fonds Euro
B6: Fonds en euros | F6: 501.00 | G6: EUR | H6: =IF(Tableau136369[[#This Row],[Devise]]="EUR",Tableau136369[[#This Row],[Dernière cotation en devise locale]],0) -> 501 | J6: 501.00 € | K6: 500.00 € | L6: =Tableau136369[[#This Row],[Nbr de parts]]*Tableau136369[[#This Row],[Dernière cotation en devise locale]]-Tableau136369[[#This Row],[Nbr de parts]]*Tableau136369[[#This Row],[Prix Moyen d''Achat]] -> 0 | M6: =Tableau136369[[#This Row],[Dernière cotation en Euros]]/Tableau136369[[#This Row],[Prix Moyen d''Achat]]-1 -> 0.20%
B7: Actions (en direct)
H8: =IF(Tableau136369[[#This Row],[Devise]]="EUR",Tableau136369[[#This Row],[Dernière cotation en devise locale]],0) -> 0 | J8: =Tableau136369[[#This Row],[Nbr de parts]]*Tableau136369[[#This Row],[Dernière cotation en Euros]] -> 0 | L8: =Tableau136369[[#This Row],[Nbr de parts]]*Tableau136369[[#This Row],[Dernière cotation en devise locale]]-Tableau136369[[#This Row],[Nbr de parts]]*Tableau136369[[#This Row],[Prix Moyen d''Achat]] -> 0 | M8: =Tableau136369[[#This Row],[Dernière cotation en Euros]]/Tableau136369[[#This Row],[Prix Moyen d''Achat]]-1 -> 
B9: Obligations (en direct)
H10: =IF(Tableau136369[[#This Row],[Devise]]="EUR",Tableau136369[[#This Row],[Dernière cotation en devise locale]],0) -> 0 | J10: =Tableau136369[[#This Row],[Nbr de parts]]*Tableau136369[[#This Row],[Dernière cotation en Euros]] -> 0 | L10: =Tableau136369[[#This Row],[Nbr de parts]]*Tableau136369[[#This Row],[Dernière cotation en devise locale]]-Tableau136369[[#This Row],[Nbr de parts]]*Tableau136369[[#This Row],[Prix Moyen d''Achat]] -> 0 | M10: =Tableau136369[[#This Row],[Dernière cotation en Euros]]/Tableau136369[[#This Row],[Prix Moyen d''Achat]]-1 -> 
B11: Trackers
H12: =IF(Tableau136369[[#This Row],[Devise]]="EUR",Tableau136369[[#This Row],[Dernière cotation en devise locale]],0) -> 0 | J12: =Tableau136369[[#This Row],[Nbr de parts]]*Tableau136369[[#This Row],[Dernière cotation en Euros]] -> 0 | M12: =Tableau136369[[#This Row],[Dernière cotation en Euros]]/Tableau136369[[#This Row],[Prix Moyen d''Achat]]-1 -> 
B13: OPCVM
J14: =Tableau136369[[#This Row],[Nbr de parts]]*Tableau136369[[#This Row],[Dernière cotation en Euros]] -> 0 | L14: =Tableau136369[[#This Row],[Nbr de parts]]*Tableau136369[[#This Row],[Dernière cotation en devise locale]]-Tableau136369[[#This Row],[Nbr de parts]]*Tableau136369[[#This Row],[Prix Moyen d''Achat]] -> 0 | M14: =Tableau136369[[#This Row],[Dernière cotation en Euros]]/Tableau136369[[#This Row],[Prix Moyen d''Achat]]-1 -> 
B15: REIT
H16: =IF(Tableau136369[[#This Row],[Devise]]="EUR",Tableau136369[[#This Row],[Dernière cotation en devise locale]],0) -> 0 | J16: =Tableau136369[[#This Row],[Nbr de parts]]*Tableau136369[[#This Row],[Dernière cotation en Euros]] -> 0 | L16: =Tableau136369[[#This Row],[Nbr de parts]]*Tableau136369[[#This Row],[Dernière cotation en devise locale]]-Tableau136369[[#This Row],[Nbr de parts]]*Tableau136369[[#This Row],[Prix Moyen d''Achat]] -> 0 | M16: =Tableau136369[[#This Row],[Dernière cotation en Euros]]/Tableau136369[[#This Row],[Prix Moyen d''Achat]]-1 -> 
B17: Autre
H18: =IF(Tableau136369[[#This Row],[Devise]]="EUR",Tableau136369[[#This Row],[Dernière cotation en devise locale]],0) -> 0 | J18: =Tableau136369[[#This Row],[Nbr de parts]]*Tableau136369[[#This Row],[Dernière cotation en Euros]] -> 0 | L18: =Tableau136369[[#This Row],[Nbr de parts]]*Tableau136369[[#This Row],[Dernière cotation en devise locale]]-Tableau136369[[#This Row],[Nbr de parts]]*Tableau136369[[#This Row],[Prix Moyen d''Achat]] -> 0 | M18: =Tableau136369[[#This Row],[Dernière cotation en Euros]]/Tableau136369[[#This Row],[Prix Moyen d''Achat]]-1 -> 
A19: * | B19: Total | J19: =SUBTOTAL(109,Tableau136369[Somme en compte]) -> 501.00 € | L19: =SUBTOTAL(109,Tableau136369[+/- Value Latente]) -> 0
B21: Allocation d'actif

Sheet AVie Linxea Evol
B2: Intitulé | C2: Isin | D2: ID morningstar | E2: Nbr de parts | F2: Dernière cotation en devise locale | G2: Devise | H2: Dernière cotation en Euros | I2: Date | J2: Somme en compte | K2: Prix Moyen d'Achat | L2: +/- Value Latente | M2: Variation % | N2: Colonne1
B3: Fonds Euro | O3: Actions | P3: 80.00%
B4: Euro selection rendement | J4: 2,942.70 € | O4: Obligations | P4: 0.00%
B5: Actions | O5: Autre | P5: =J8/Tableau136[[#Totals],[Somme en compte]] -> 12.90%
B6: CARMIGNAC EMERGENTS A EUR | C6: FR0010149302 | D6: F0GBR04F8J | E6: 1.1253 | F6: 892.08 | G6: EUR | I6: 28/04/2015 | J6: =Tableau136[[#This Row],[Nbr de parts]]*Tableau136[[#This Row],[Dernière cotation en devise locale]] -> 1,003.86 € | N6: http://www.morningstar.fr/includes/images/styleboxlg2.gif | O6: Fond Euro | P6: 20.00%
B7: CCR CROISSANCE EUROPE R | C7: FR0007016068 | D7: F0GBR04QFV | E7: 3.9741 | F7: 710.14 | G7: EUR | I7: 27/04/2015 | J7: =Tableau136[[#This Row],[Nbr de parts]]*Tableau136[[#This Row],[Dernière cotation en devise locale]] -> 2,822.17 € | N7: http://www.morningstar.fr/includes/images/styleboxlg2.gif | O7: Non classifié | P7: 0.00%
B8: FEDERAL INDICIEL JAPON P | C8: FR0000987968 | D8: F0GBR04ONO | E8: 23.1355 | F8: 188.76 | G8: EUR | I8: 28/04/2015 | J8: =Tableau136[[#This Row],[Nbr de parts]]*Tableau136[[#This Row],[Dernière cotation en devise locale]] -> 4,367.06 € | N8: http://www.morningstar.fr/includes/images/styleboxlg2.gif | P8: =SUM(P3:P7) -> 112.90%
B9: FEDERAL INDICIEL US P | C9: FR0000988057 | D9: F0GBR04ONS | E9: 13.0269 | F9: 231.71 | G9: EUR | I9: 27/04/2015 | J9: =Tableau136[[#This Row],[Nbr de parts]]*Tableau136[[#This Row],[Dernière cotation en devise locale]] -> 3,018.46 € | N9: http://www.morningstar.fr/includes/images/styleboxlg2.gif
B10: FF EUROPEAN GWTH FD A EUR CAP | C10: LU0296857971 | D10: F000000EVD | E10: 274.5846 | F10: 12.69 | G10: EUR | I10: 28/04/2015 | J10: =Tableau136[[#This Row],[Nbr de parts]]*Tableau136[[#This Row],[Dernière cotation en devise locale]] -> 3,484.48 € | N10: http://www.morningstar.fr/includes/images/styleboxlg2.gif
B11: FF SOUTH EAST ASIA A EUR CAP | C11: LU0261946445 | D11: FOGBR05KM5 | E11: 105.5011 | F11: 23.97 | G11: EUR | I11: 28/04/2015 | J11: =Tableau136[[#This Row],[Nbr de parts]]*Tableau136[[#This Row],[Dernière cotation en devise locale]] -> 2528.861367 | N11: http://www.morningstar.fr/includes/images/styleboxlg3.gif
B12: FRANKLIN MUT EURP N EUR CAP | C12: LU0140363267 | D12: F0GBR04M1S | E12: 119.6896 | F12: 22.07 | G12: EUR | I12: 28/04/2015 | J12: =Tableau136[[#This Row],[Nbr de parts]]*Tableau136[[#This Row],[Dernière cotation en devise locale]] -> 2641.549472 | N12: http://www.morningstar.fr/includes/images/styleboxlg1.gif
B13: JPMORGAN HIG US STEEP FD A EUR | C13: LU0325074507 | D13: F000001W52 | E13: 171.1742 | F13: 17.66 | G13: EUR | I13: 28/04/2015 | J13: =Tableau136[[#This Row],[Nbr de parts]]*Tableau136[[#This Row],[Dernière cotation en devise locale]] -> 3022.936372 | N13: http://www.morningstar.fr/includes/images/styleboxlg5.gif
B14: MAGELLAN C | C14: FR0000292278 | D14: F0GBR04QCJ | E14: 58.2475 | F14: 23.84 | G14: EUR | I14: 27/04/2015 | J14: =Tableau136[[#This Row],[Nbr de parts]]*Tableau136[[#This Row],[Dernière cotation en devise locale]] -> 1388.6204 | N14: http://www.morningstar.fr/includes/images/styleboxlg3.gif
B15: METROPOLE SELECTION A | C15: FR0007078811 | D15: F0GBR04LMM | E15: 5.2757 | F15: 656.26 | G15: EUR | I15: 27/04/2015 | J15: =Tableau136[[#This Row],[Nbr de parts]]*Tableau136[[#This Row],[Dernière cotation en devise locale]] -> 3462.230882 | N15: http://www.morningstar.fr/includes/images/styleboxlg1.gif
B16: Obligations
B17: NATIXIS SOUVERAINS EURO R (C) | C17: FR0000003196 | D17: F0GBR04R5B | E17: 2.8684 | F17: 533.10 | G17: EUR | I17: 27/04/2015 | J17: =Tableau136[[#This Row],[Nbr de parts]]*Tableau136[[#This Row],[Dernière cotation en devise locale]] -> 1,529.14 € | N17: http://www.morningstar.fr/includes/images/styleboxlg6.gif
A18: * | B18: TEMPLETON GB TOT RET FD N EUR | C18: LU0260870745 | D18: FOGBR05JH0 | E18: 65.0725 | F18: 25.08 | G18: EUR | I18: 28/04/2015 | J18: =Tableau136[[#This Row],[Nbr de parts]]*Tableau136[[#This Row],[Dernière cotation en devise locale]] -> 1,632.02 € | N18: http://www.morningstar.fr/includes/images/styleboxlg7.gif
B19: Total | J19: =SUBTOTAL(109,Tableau136[Somme en compte]) -> 33,844.08 €
B21: Allocation d'actif

Sheet PEA PME Boursorama
B2: Intitulé | C2: Isin | D2: ID morningstar | E2: Nbr de parts | F2: Dernière cotation en devise locale | G2: Devise | H2: Dernière cotation en Euros | I2: Date | J2: Somme en compte | K2: Prix Moyen d'Achat | L2: +/- Value Latente | M2: Variation % | N2: Colonne1
B3: Liquidités (disponibles)
B4: Espèces EUR | F4: 0 | G4: EUR | H4: =IF(Tableau136368[[#This Row],[Devise]]="EUR",Tableau136368[[#This Row],[Dernière cotation en devise locale]],0) -> 0 | J4: 30.19 €
B5: Fonds Euro
B6: Fonds en euros SURAVENIR OPPORTUNITES | J6: 0 | M6: =Tableau136368[[#This Row],[Dernière cotation en Euros]]/Tableau136368[[#This Row],[Prix Moyen d''Achat]]-1 -> 
B7: Actions (en direct)
B8: ONCODESIGN | C8: FR0011766229 | D8: 0P00012JPR | E8: 19 | J8: =Tableau136368[[#This Row],[Nbr de parts]]*Tableau136368[[#This Row],[Dernière cotation en devise locale]] -> 0 | L8: =Tableau136368[[#This Row],[Nbr de parts]]*Tableau136368[[#This Row],[Dernière cotation en Euros]]-Tableau136368[[#This Row],[Nbr de parts]]*Tableau136368[[#This Row],[Prix Moyen d''Achat]] -> 0 | M8: =Tableau136368[[#This Row],[Dernière cotation en Euros]]/Tableau136368[[#This Row],[Prix Moyen d''Achat]]-1 -> 
B9: INNOVEOX | C9: FR0011066885 | D9: 0P00012XO5 | E9: 45 | J9: =Tableau136368[[#This Row],[Nbr de parts]]*Tableau136368[[#This Row],[Dernière cotation en devise locale]] -> 0
B10: Obligations (en direct)
J11: =Tableau136368[[#This Row],[Nbr de parts]]*Tableau136368[[#This Row],[Dernière cotation en devise locale]] -> 0 | L11: =Tableau136368[[#This Row],[Nbr de parts]]*Tableau136368[[#This Row],[Dernière cotation en Euros]]-Tableau136368[[#This Row],[Nbr de parts]]*Tableau136368[[#This Row],[Prix Moyen d''Achat]] -> 0 | M11: =Tableau136368[[#This Row],[Dernière cotation en Euros]]/Tableau136368[[#This Row],[Prix Moyen d''Achat]]-1 -> 
B12: Trackers
B13: Lyxor UCITS ETF PEA PME D-EUR | C13: FR0011770775 | D13: 0P00012QDU | E13: 100 | F13: 10.95 | G13: EUR | I13: 29/04/2015 | L13: =Tableau136368[[#This Row],[Nbr de parts]]*Tableau136368[[#This Row],[Dernière cotation en Euros]]-Tableau136368[[#This Row],[Nbr de parts]]*Tableau136368[[#This Row],[Prix Moyen d''Achat]] -> 0 | N13: http://www.morningstar.fr/includes/images/styleboxlg0.gif
B14: OPCVM
J15: =Tableau136368[[#This Row],[Nbr de parts]]*Tableau136368[[#This Row],[Dernière cotation en devise locale]] -> 0 | K15: 418.41 € | L15: =Tableau136368[[#This Row],[Nbr de parts]]*Tableau136368[[#This Row],[Dernière cotation en Euros]]-Tableau136368[[#This Row],[Nbr de parts]]*Tableau136368[[#This Row],[Prix Moyen d''Achat]] -> 0 | M15: =Tableau136368[[#This Row],[Dernière cotation en Euros]]/Tableau136368[[#This Row],[Prix Moyen d''Achat]]-1 -> -100.00%
B16: REIT
J17: =Tableau136368[[#This Row],[Nbr de parts]]*Tableau136368[[#This Row],[Dernière cotation en devise locale]] -> 0 | L17: =Tableau136368[[#This Row],[Nbr de parts]]*Tableau136368[[#This Row],[Dernière cotation en Euros]]-Tableau136368[[#This Row],[Nbr de parts]]*Tableau136368[[#This Row],[Prix Moyen d''Achat]] -> 0 | M17: =Tableau136368[[#This Row],[Dernière cotation en Euros]]/Tableau136368[[#This Row],[Prix Moyen d''Achat]]-1 -> 
B18: Autre
J19: =Tableau136368[[#This Row],[Nbr de parts]]*Tableau136368[[#This Row],[Dernière cotation en devise locale]] -> 0 | L19: =Tableau136368[[#This Row],[Nbr de parts]]*Tableau136368[[#This Row],[Dernière cotation en Euros]]-Tableau136368[[#This Row],[Nbr de parts]]*Tableau136368[[#This Row],[Prix Moyen d''Achat]] -> 0 | M19: =Tableau136368[[#This Row],[Dernière cotation en Euros]]/Tableau136368[[#This Row],[Prix Moyen d''Achat]]-1 -> 
A20: * | B20: Total | J20: =SUBTOTAL(109,Tableau136368[Somme en compte]) -> 30.19 € | L20: =SUBTOTAL(109,Tableau136368[+/- Value Latente]) -> 0
B22: Allocation d'actif

Sheet CTO Degiro
B2: Intitulé | C2: Isin | D2: ID morningstar | E2: Nbr de parts | F2: Dernière cotation en devise locale | G2: Devise | H2: Dernière cotation en Euros | I2: Date | J2: Somme en compte | K2: Prix Moyen d'Achat | L2: +/- Value Latente | M2: Variation % | N2: Colonne1
B3: Liquidités (disponibles)
B4: Espèces EUR | F4: 800.00 | G4: EUR | H4: =IF(Tableau13636810[[#This Row],[Devise]]="EUR",Tableau13636810[[#This Row],[Dernière cotation en devise locale]],0) -> 800.00 € | J4: 800.00 €
B5: Espèces USD | F5: 2,000.00 | G5: USD | H5: =Tableau13636810[[#This Row],[Dernière cotation en devise locale]]*Devise!$C4 -> 1,799.99 € | J5: =Tableau13636810[[#This Row],[Dernière cotation en Euros]] -> 1,799.99 €
B6: Fonds Euro
B7: Fonds en euros SURAVENIR OPPORTUNITES | J7: 0 | M7: =Tableau13636810[[#This Row],[Dernière cotation en Euros]]/Tableau13636810[[#This Row],[Prix Moyen d''Achat]]-1 -> 
B8: Actions (en direct)
B9: WPX Energy Inc | C9: US98212B1035 | D9: 0P0000UTWX | E9: 98 | J9: =Tableau13636810[[#This Row],[Nbr de parts]]*Tableau13636810[[#This Row],[Dernière cotation en devise locale]] -> 0 | L9: =Tableau13636810[[#This Row],[Nbr de parts]]*Tableau13636810[[#This Row],[Dernière cotation en Euros]]-Tableau13636810[[#This Row],[Nbr de parts]]*Tableau13636810[[#This Row],[Prix Moyen d''Achat]] -> 0 | M9: =Tableau13636810[[#This Row],[Dernière cotation en Euros]]/Tableau13636810[[#This Row],[Prix Moyen d''Achat]]-1 -> 
B10: IBM | C10: US4592001014 | D10: 0P000002RH | E10: 12 | J10: =Tableau13636810[[#This Row],[Nbr de parts]]*Tableau13636810[[#This Row],[Dernière cotation en devise locale]] -> 0 | L10: =Tableau13636810[[#This Row],[Nbr de parts]]*Tableau13636810[[#This Row],[Dernière cotation en Euros]]-Tableau13636810[[#This Row],[Nbr de parts]]*Tableau13636810[[#This Row],[Prix Moyen d''Achat]] -> 0
B11: Sears Holdings Corp | C11: US8123501061 | D11: 0P000004VG | J11: =Tableau13636810[[#This Row],[Nbr de parts]]*Tableau13636810[[#This Row],[Dernière cotation en devise locale]] -> 0 | L11: =Tableau13636810[[#This Row],[Nbr de parts]]*Tableau13636810[[#This Row],[Dernière cotation en Euros]]-Tableau13636810[[#This Row],[Nbr de parts]]*Tableau13636810[[#This Row],[Prix Moyen d''Achat]] -> 0
B12: Obligations (en direct)
J13: =Tableau13636810[[#This Row],[Nbr de parts]]*Tableau13636810[[#This Row],[Dernière cotation en devise locale]] -> 0 | L13: =Tableau13636810[[#This Row],[Nbr de parts]]*Tableau13636810[[#This Row],[Dernière cotation en Euros]]-Tableau13636810[[#This Row],[Nbr de parts]]*Tableau13636810[[#This Row],[Prix Moyen d''Achat]] -> 0 | M13: =Tableau13636810[[#This Row],[Dernière cotation en Euros]]/Tableau13636810[[#This Row],[Prix Moyen d''Achat]]-1 -> 
B14: Trackers
B15: ETFS Precious Metals ETC | C15: GB00B15KYF40 | D15: 0P0000HYBP | E15: 45 | F15: 15.06 | G15: EUR | I15: 14/05/2015 | L15: =Tableau13636810[[#This Row],[Nbr de parts]]*Tableau13636810[[#This Row],[Dernière cotation en Euros]]-Tableau13636810[[#This Row],[Nbr de parts]]*Tableau13636810[[#This Row],[Prix Moyen d''Achat]] -> 0 | N15: http://www.morningstar.fr/includes/images/styleboxlg0.gif
B16: OPCVM
J17: =Tableau13636810[[#This Row],[Nbr de parts]]*Tableau13636810[[#This Row],[Dernière cotation en devise locale]] -> 0 | L17: =Tableau13636810[[#This Row],[Nbr de parts]]*Tableau13636810[[#This Row],[Dernière cotation en Euros]]-Tableau13636810[[#This Row],[Nbr de parts]]*Tableau13636810[[#This Row],[Prix Moyen d''Achat]] -> 0 | M17: =Tableau13636810[[#This Row],[Dernière cotation en Euros]]/Tableau13636810[[#This Row],[Prix Moyen d''Achat]]-1 -> 
B18: REIT
B19: CYS Investments Inc | C19: US12673A1088 | D19: 0P0000K9WV | E19: 180 | J19: =Tableau13636810[[#This Row],[Nbr de parts]]*Tableau13636810[[#This Row],[Dernière cotation en devise locale]] -> 0 | L19: =Tableau13636810[[#This Row],[Nbr de parts]]*Tableau13636810[[#This Row],[Dernière cotation en Euros]]-Tableau13636810[[#This Row],[Nbr de parts]]*Tableau13636810[[#This Row],[Prix Moyen d''Achat]] -> 0 | M19: =Tableau13636810[[#This Row],[Dernière cotation en Euros]]/Tableau13636810[[#This Row],[Prix Moyen d''Achat]]-1 -> 
B20: Autre
J21: =Tableau13636810[[#This Row],[Nbr de parts]]*Tableau13636810[[#This Row],[Dernière cotation en devise locale]] -> 0 | L21: =Tableau13636810[[#This Row],[Nbr de parts]]*Tableau13636810[[#This Row],[Dernière cotation en Euros]]-Tableau13636810[[#This Row],[Nbr de parts]]*Tableau13636810[[#This Row],[Prix Moyen d''Achat]] -> 0 | M21: =Tableau13636810[[#This Row],[Dernière cotation en Euros]]/Tableau13636810[[#This Row],[Prix Moyen d''Achat]]-1 -> 
A22: * | B22: Total | J22: =SUBTOTAL(109,Tableau13636810[Somme en compte]) -> 2,599.99 € | L22: =SUBTOTAL(109,Tableau13636810[+/- Value Latente]) -> 0
B24: Allocation d'actif

Sheet PEE Entreprise

Sheet PEL
B2: Intitulé | C2: Isin | D2: ID morningstar | E2: Nbr de parts | F2: Dernière cotation en devise locale | G2: Devise | H2: Dernière cotation en Euros | I2: Date | J2: Somme en compte | K2: Prix Moyen d'Achat | L2: +/- Value Latente | M2: Variation %
B3: Liquidités (disponibles)
B4: Espèces EUR rémunérées | F4: 12,500.00 | G4: EUR | H4: =IF(Tableau1363681012[[#This Row],[Devise]]="EUR",Tableau1363681012[[#This Row],[Dernière cotation en devise locale]],0) -> 12,500.00 € | J4: 12,500.00 €
B5: Fonds Euro
J6: 0 | M6: =Tableau1363681012[[#This Row],[Dernière cotation en Euros]]/Tableau1363681012[[#This Row],[Prix Moyen d''Achat]]-1 -> 
B7: Actions (en direct)
J8: =Tableau1363681012[[#This Row],[Nbr de parts]]*Tableau1363681012[[#This Row],[Dernière cotation en devise locale]] -> 0 | L8: =Tableau1363681012[[#This Row],[Nbr de parts]]*Tableau1363681012[[#This Row],[Dernière cotation en Euros]]-Tableau1363681012[[#This Row],[Nbr de parts]]*Tableau1363681012[[#This Row],[Prix Moyen d''Achat]] -> 0 | M8: =Tableau1363681012[[#This Row],[Dernière cotation en Euros]]/Tableau1363681012[[#This Row],[Prix Moyen d''Achat]]-1 -> 
B9: Obligations (en direct)
J10: =Tableau1363681012[[#This Row],[Nbr de parts]]*Tableau1363681012[[#This Row],[Dernière cotation en devise locale]] -> 0 | L10: =Tableau1363681012[[#This Row],[Nbr de parts]]*Tableau1363681012[[#This Row],[Dernière cotation en Euros]]-Tableau1363681012[[#This Row],[Nbr de parts]]*Tableau1363681012[[#This Row],[Prix Moyen d''Achat]] -> 0 | M10: =Tableau1363681012[[#This Row],[Dernière cotation en Euros]]/Tableau1363681012[[#This Row],[Prix Moyen d''Achat]]-1 -> 
B11: Trackers
L12: =Tableau1363681012[[#This Row],[Nbr de parts]]*Tableau1363681012[[#This Row],[Dernière cotation en Euros]]-Tableau1363681012[[#This Row],[Nbr de parts]]*Tableau1363681012[[#This Row],[Prix Moyen d''Achat]] -> 0
B13: OPCVM
J14: =Tableau1363681012[[#This Row],[Nbr de parts]]*Tableau1363681012[[#This Row],[Dernière cotation en devise locale]] -> 0 | L14: =Tableau1363681012[[#This Row],[Nbr de parts]]*Tableau1363681012[[#This Row],[Dernière cotation en Euros]]-Tableau1363681012[[#This Row],[Nbr de parts]]*Tableau1363681012[[#This Row],[Prix Moyen d''Achat]] -> 0 | M14: =Tableau1363681012[[#This Row],[Dernière cotation en Euros]]/Tableau1363681012[[#This Row],[Prix Moyen d''Achat]]-1 -> 
B15: REIT
J16: =Tableau1363681012[[#This Row],[Nbr de parts]]*Tableau1363681012[[#This Row],[Dernière cotation en devise locale]] -> 0 | L16: =Tableau1363681012[[#This Row],[Nbr de parts]]*Tableau1363681012[[#This Row],[Dernière cotation en Euros]]-Tableau1363681012[[#This Row],[Nbr de parts]]*Tableau1363681012[[#This Row],[Prix Moyen d''Achat]] -> 0 | M16: =Tableau1363681012[[#This Row],[Dernière cotation en Euros]]/Tableau1363681012[[#This Row],[Prix Moyen d''Achat]]-1 -> 
B17: Autre
J18: =Tableau1363681012[[#This Row],[Nbr de parts]]*Tableau1363681012[[#This Row],[Dernière cotation en devise locale]] -> 0 | L18: =Tableau1363681012[[#This Row],[Nbr de parts]]*Tableau1363681012[[#This Row],[Dernière cotation en Euros]]-Tableau1363681012[[#This Row],[Nbr de parts]]*Tableau1363681012[[#This Row],[Prix Moyen d''Achat]] -> 0 | M18: =Tableau1363681012[[#This Row],[Dernière cotation en Euros]]/Tableau1363681012[[#This Row],[Prix Moyen d''Achat]]-1 -> 
A19: * | B19: Total | J19: =SUBTOTAL(109,Tableau1363681012[Somme en compte]) -> 12,500.00 € | L19: =SUBTOTAL(109,Tableau1363681012[+/- Value Latente]) -> 0
B21: Allocation d'actif

Sheet Livret A
B2: Intitulé | C2: Isin | D2: ID morningstar | E2: Nbr de parts | F2: Dernière cotation en devise locale | G2: Devise | H2: Dernière cotation en Euros | I2: Date | J2: Somme en compte | K2: Prix Moyen d'Achat | L2: +/- Value Latente | M2: Variation %
B3: Liquidités (disponibles)
B4: Espèces EUR rémunérées | F4: 10,000.00 | G4: EUR | H4: =IF(Tableau136368101213[[#This Row],[Devise]]="EUR",Tableau136368101213[[#This Row],[Dernière cotation en devise locale]],0) -> 10,000.00 € | J4: 10,000.00 €
B5: Fonds Euro
J6: 0 | M6: =Tableau136368101213[[#This Row],[Dernière cotation en Euros]]/Tableau136368101213[[#This Row],[Prix Moyen d''Achat]]-1 -> 
B7: Actions (en direct)
J8: =Tableau136368101213[[#This Row],[Nbr de parts]]*Tableau136368101213[[#This Row],[Dernière cotation en devise locale]] -> 0 | L8: =Tableau136368101213[[#This Row],[Nbr de parts]]*Tableau136368101213[[#This Row],[Dernière cotation en Euros]]-Tableau136368101213[[#This Row],[Nbr de parts]]*Tableau136368101213[[#This Row],[Prix Moyen d''Achat]] -> 0 | M8: =Tableau136368101213[[#This Row],[Dernière cotation en Euros]]/Tableau136368101213[[#This Row],[Prix Moyen d''Achat]]-1 -> 
B9: Obligations (en direct)
J10: =Tableau136368101213[[#This Row],[Nbr de parts]]*Tableau136368101213[[#This Row],[Dernière cotation en devise locale]] -> 0 | L10: =Tableau136368101213[[#This Row],[Nbr de parts]]*Tableau136368101213[[#This Row],[Dernière cotation en Euros]]-Tableau136368101213[[#This Row],[Nbr de parts]]*Tableau136368101213[[#This Row],[Prix Moyen d''Achat]] -> 0 | M10: =Tableau136368101213[[#This Row],[Dernière cotation en Euros]]/Tableau136368101213[[#This Row],[Prix Moyen d''Achat]]-1 -> 
B11: Trackers
L12: =Tableau136368101213[[#This Row],[Nbr de parts]]*Tableau136368101213[[#This Row],[Dernière cotation en Euros]]-Tableau136368101213[[#This Row],[Nbr de parts]]*Tableau136368101213[[#This Row],[Prix Moyen d''Achat]] -> 0
B13: OPCVM
J14: =Tableau136368101213[[#This Row],[Nbr de parts]]*Tableau136368101213[[#This Row],[Dernière cotation en devise locale]] -> 0 | L14: =Tableau136368101213[[#This Row],[Nbr de parts]]*Tableau136368101213[[#This Row],[Dernière cotation en Euros]]-Tableau136368101213[[#This Row],[Nbr de parts]]*Tableau136368101213[[#This Row],[Prix Moyen d''Achat]] -> 0 | M14: =Tableau136368101213[[#This Row],[Dernière cotation en Euros]]/Tableau136368101213[[#This Row],[Prix Moyen d''Achat]]-1 -> 
B15: REIT
J16: =Tableau136368101213[[#This Row],[Nbr de parts]]*Tableau136368101213[[#This Row],[Dernière cotation en devise locale]] -> 0 | L16: =Tableau136368101213[[#This Row],[Nbr de parts]]*Tableau136368101213[[#This Row],[Dernière cotation en Euros]]-Tableau136368101213[[#This Row],[Nbr de parts]]*Tableau136368101213[[#This Row],[Prix Moyen d''Achat]] -> 0 | M16: =Tableau136368101213[[#This Row],[Dernière cotation en Euros]]/Tableau136368101213[[#This Row],[Prix Moyen d''Achat]]-1 -> 
B17: Autre
J18: =Tableau136368101213[[#This Row],[Nbr de parts]]*Tableau136368101213[[#This Row],[Dernière cotation en devise locale]] -> 0 | L18: =Tableau136368101213[[#This Row],[Nbr de parts]]*Tableau136368101213[[#This Row],[Dernière cotation en Euros]]-Tableau136368101213[[#This Row],[Nbr de parts]]*Tableau136368101213[[#This Row],[Prix Moyen d''Achat]] -> 0 | M18: =Tableau136368101213[[#This Row],[Dernière cotation en Euros]]/Tableau136368101213[[#This Row],[Prix Moyen d''Achat]]-1 -> 
A19: * | B19: Total | J19: =SUBTOTAL(109,Tableau136368101213[Somme en compte]) -> 10,000.00 € | L19: =SUBTOTAL(109,Tableau136368101213[+/- Value Latente]) -> 0
B21: Allocation d'actif

Sheet LDD
B2: Intitulé | C2: Isin | D2: ID morningstar | E2: Nbr de parts | F2: Dernière cotation en devise locale | G2: Devise | H2: Dernière cotation en Euros | I2: Date | J2: Somme en compte | K2: Prix Moyen d'Achat | L2: +/- Value Latente | M2: Variation %
B3: Liquidités (disponibles)
B4: Espèces EUR rémunérées | F4: 10,000.00 | G4: EUR | H4: =IF(Tableau13636810121314[[#This Row],[Devise]]="EUR",Tableau13636810121314[[#This Row],[Dernière cotation en devise locale]],0) -> 10,000.00 € | J4: 10,000.00 €
B5: Fonds Euro
J6: 0 | M6: =Tableau13636810121314[[#This Row],[Dernière cotation en Euros]]/Tableau13636810121314[[#This Row],[Prix Moyen d''Achat]]-1 -> 
B7: Actions (en direct)
J8: =Tableau13636810121314[[#This Row],[Nbr de parts]]*Tableau13636810121314[[#This Row],[Dernière cotation en devise locale]] -> 0 | L8: =Tableau13636810121314[[#This Row],[Nbr de parts]]*Tableau13636810121314[[#This Row],[Dernière cotation en Euros]]-Tableau13636810121314[[#This Row],[Nbr de parts]]*Tableau13636810121314[[#This Row],[Prix Moyen d''Achat]] -> 0 | M8: =Tableau13636810121314[[#This Row],[Dernière cotation en Euros]]/Tableau13636810121314[[#This Row],[Prix Moyen d''Achat]]-1 -> 
B9: Obligations (en direct)
J10: =Tableau13636810121314[[#This Row],[Nbr de parts]]*Tableau13636810121314[[#This Row],[Dernière cotation en devise locale]] -> 0 | L10: =Tableau13636810121314[[#This Row],[Nbr de parts]]*Tableau13636810121314[[#This Row],[Dernière cotation en Euros]]-Tableau13636810121314[[#This Row],[Nbr de parts]]*Tableau13636810121314[[#This Row],[Prix Moyen d''Achat]] -> 0 | M10: =Tableau13636810121314[[#This Row],[Dernière cotation en Euros]]/Tableau13636810121314[[#This Row],[Prix Moyen d''Achat]]-1 -> 
B11: Trackers
L12: =Tableau13636810121314[[#This Row],[Nbr de parts]]*Tableau13636810121314[[#This Row],[Dernière cotation en Euros]]-Tableau13636810121314[[#This Row],[Nbr de parts]]*Tableau13636810121314[[#This Row],[Prix Moyen d''Achat]] -> 0
B13: OPCVM
J14: =Tableau13636810121314[[#This Row],[Nbr de parts]]*Tableau13636810121314[[#This Row],[Dernière cotation en devise locale]] -> 0 | L14: =Tableau13636810121314[[#This Row],[Nbr de parts]]*Tableau13636810121314[[#This Row],[Dernière cotation en Euros]]-Tableau13636810121314[[#This Row],[Nbr de parts]]*Tableau13636810121314[[#This Row],[Prix Moyen d''Achat]] -> 0 | M14: =Tableau13636810121314[[#This Row],[Dernière cotation en Euros]]/Tableau13636810121314[[#This Row],[Prix Moyen d''Achat]]-1 -> 
B15: REIT
J16: =Tableau13636810121314[[#This Row],[Nbr de parts]]*Tableau13636810121314[[#This Row],[Dernière cotation en devise locale]] -> 0 | L16: =Tableau13636810121314[[#This Row],[Nbr de parts]]*Tableau13636810121314[[#This Row],[Dernière cotation en Euros]]-Tableau13636810121314[[#This Row],[Nbr de parts]]*Tableau13636810121314[[#This Row],[Prix Moyen d''Achat]] -> 0 | M16: =Tableau13636810121314[[#This Row],[Dernière cotation en Euros]]/Tableau13636810121314[[#This Row],[Prix Moyen d''Achat]]-1 -> 
B17: Autre
J18: =Tableau13636810121314[[#This Row],[Nbr de parts]]*Tableau13636810121314[[#This Row],[Dernière cotation en devise locale]] -> 0 | L18: =Tableau13636810121314[[#This Row],[Nbr de parts]]*Tableau13636810121314[[#This Row],[Dernière cotation en Euros]]-Tableau13636810121314[[#This Row],[Nbr de parts]]*Tableau13636810121314[[#This Row],[Prix Moyen d''Achat]] -> 0 | M18: =Tableau13636810121314[[#This Row],[Dernière cotation en Euros]]/Tableau13636810121314[[#This Row],[Prix Moyen d''Achat]]-1 -> 
A19: * | B19: Total | J19: =SUBTOTAL(109,Tableau13636810121314[Somme en compte]) -> 10,000.00 € | L19: =SUBTOTAL(109,Tableau13636810121314[+/- Value Latente]) -> 0
B21: Allocation d'actif

Sheet Devise
B2: Devise à convertir | C2: Conversion X / EUR | D2: Conversion EUR / X
B3: EUR | C3: 1 | D3: 1
B4: USD | C4: 0.8999971 | D4: =1/Tableau13635[[#This Row],[Conversion X / EUR]] -> 1.111114691
B5: GBP | D5: =1/Tableau13635[[#This Row],[Conversion X / EUR]] -> 
B6: CHF | D6: =1/Tableau13635[[#This Row],[Conversion X / EUR]] -> 
B7: CAD | D7: =1/Tableau13635[[#This Row],[Conversion X / EUR]] -> 
B8: AUD | D8: =1/Tableau13635[[#This Row],[Conversion X / EUR]] -> 
B9: INR | D9: =1/Tableau13635[[#This Row],[Conversion X / EUR]] -> 
B10: HUF | D10: =1/Tableau13635[[#This Row],[Conversion X / EUR]] -> 
B11: THB | D11: =1/Tableau13635[[#This Row],[Conversion X / EUR]] -> 
B12: HKD | D12: =1/Tableau13635[[#This Row],[Conversion X / EUR]] -> 
B13: SGD | D13: =1/Tableau13635[[#This Row],[Conversion X / EUR]] -> 
B14: CNY | D14: =1/Tableau13635[[#This Row],[Conversion X / EUR]] -> 
B15: JPY | D15: =1/Tableau13635[[#This Row],[Conversion X / EUR]] -> 
B16: MYR | D16: =1/Tableau13635[[#This Row],[Conversion X / EUR]] -> 
B17: NZD | D17: =1/Tableau13635[[#This Row],[Conversion X / EUR]] -> 
B18: AED | D18: =1/Tableau13635[[#This Row],[Conversion X / EUR]] -> 
B19: MXN | D19: =1/Tableau13635[[#This Row],[Conversion X / EUR]] -> 
B20: ZAR | D20: =1/Tableau13635[[#This Row],[Conversion X / EUR]] -> 
B21: PHP | D21: =1/Tableau13635[[#This Row],[Conversion X / EUR]] -> 
B22: SEK | D22: =1/Tableau13635[[#This Row],[Conversion X / EUR]] -> 
B23: IDR | D23: =1/Tableau13635[[#This Row],[Conversion X / EUR]] -> 
B24: SAR | D24: =1/Tableau13635[[#This Row],[Conversion X / EUR]] -> 
B25: BRL | D25: =1/Tableau13635[[#This Row],[Conversion X / EUR]] -> 
B26: TRY | D26: =1/Tableau13635[[#This Row],[Conversion X / EUR]] -> 
B27: KES | D27: =1/Tableau13635[[#This Row],[Conversion X / EUR]] -> 
B28: KRW | D28: =1/Tableau13635[[#This Row],[Conversion X / EUR]] -> 
B29: EGP | D29: =1/Tableau13635[[#This Row],[Conversion X / EUR]] -> 
B30: NOK | D30: =1/Tableau13635[[#This Row],[Conversion X / EUR]] -> 
B31: RUB | D31: =1/Tableau13635[[#This Row],[Conversion X / EUR]] -> 
B32: DKK | D32: =1/Tableau13635[[#This Row],[Conversion X / EUR]] -> 
B33: ILS | D33: =1/Tableau13635[[#This Row],[Conversion X / EUR]] -> 
B34: QAR | D34: =1/Tableau13635[[#This Row],[Conversion X / EUR]] -> 
D35: =1/Tableau13635[[#This Row],[Conversion X / EUR]] -> 
D36: =1/Tableau13635[[#This Row],[Conversion X / EUR]] -> 
D37: =1/Tableau13635[[#This Row],[Conversion X / EUR]] -> 
D38: =1/Tableau13635[[#This Row],[Conversion X / EUR]] -> 
D39: =1/Tableau13635[[#This Row],[Conversion X / EUR]] -> 
D40: =1/Tableau13635[[#This Row],[Conversion X / EUR]] -> 
D41: =1/Tableau13635[[#This Row],[Conversion X / EUR]] -> 
D42: =1/Tableau13635[[#This Row],[Conversion X / EUR]] -> 
D43: =1/Tableau13635[[#This Row],[Conversion X / EUR]] -> 
D44: =1/Tableau13635[[#This Row],[Conversion X / EUR]] -> 
D45: =1/Tableau13635[[#This Row],[Conversion X / EUR]] -> 
D46: =1/Tableau13635[[#This Row],[Conversion X / EUR]] -> 
D47: =1/Tableau13635[[#This Row],[Conversion X / EUR]] -> 
D48: =1/Tableau13635[[#This Row],[Conversion X / EUR]] -> 

Sheet LU0261946445

Sheet FR0000988057
A3: Valorisation | B3: Portefeuille actions | C3: Par rap./cat.
A4: Cours/Bénéfices | B4: 13.83 | C4: 0.86
A5: Cours/Actif net | B5: 1.64 | C5: 0.79
A6: Prix d'achat/vente | B6: 0.92 | C6: 0.66
A7: Cours/Cash flow | B7: 7.84 | C7: 0.88
A8: Facteur de retour sur dividendes | B8: 2.97 | C8: 1.17
A10: Projection de la croissance à long terme | B10: 10.09 | C10: 1.03
A11: Croissance des revenus historiques | B11: 3.19 | C11: 0.33
A12: Croissance des ventes | B12: -17.53 | C12: -8.89
A13: Croissance des cash-flows | B13: -1.85 | C13: -1.67
A14: Croissance de la valeur comptable | B14: -12.76 | C14: -1.72
A16: STYLE D'INVESTISSEMENTt
A18: Taille | C18: Par rap./cat.
A19: Capitalisation médiane | B19: EUR 41954 | C19: -
A20: Capitalisation | C20: % des actifs actions
A21: Géantes | C21: 59.41
A22: Grandes | C22: 36.98
A23: Moyennes | C23: 3.61
A24: Petites | C24: 0
A25: Micro | C25: 0
A27: Répartition par type d'actif | D27: 4200400.00%
B28: % Long | C28: % Court | D28: % des actifs nets
A29: Actions | B29: 86.31 | C29: 0 | D29: 86.31
A30: Obligations | B30: 0 | C30: 0.85 | D30: -0.85
A31: Liquidités | B31: 11.22 | C31: 0.25 | D31: 10.97
A32: Autres | B32: 3.57 | C32: 0 | D32: 3.57
A34: Répartition géographique | C34: 4200400.00%
B35: % des actifs actions | C35: Par rap./cat.
A36: Etats Unis | B36: 0 | C36: 0
A37: Canada | B37: 0 | C37: 0
A38: Amérique Latine | B38: 0 | C38: 0
A39: Royaume Uni | B39: 9.98 | C39: 10.41
A40: Eurozone | B40: 90.02 | C40: 184.66
A41: Europe - sauf Euro | B41: 0 | C41: 0
A42: Europe - Émergente | B42: 0 | C42: -
A43: Afrique | B43: 0 | C43: 0
A44: Moyen Orient | B44: 0 | C44: 0
A45: Japon | B45: 0 | C45: -
A46: Australasie | B46: 0 | C46: -
A47: Asie - Pays Développés | B47: 0 | C47: 0
A48: Asie - Émergente | B48: 0 | C48: 0
A50: Catégorie: Actions Etats-Unis Gdes Cap. Value
A52: Répartition sectorielle | C52: 4200400.00%
B53: % des actifs actions | C53: Par rap./cat.
A54: Matériaux de Base | B54: 11.55 | C54: 3.48
A55: Consommation Cyclique | B55: 18.78 | C55: 1.86
A56: Services Financiers | B56: 20.81 | C56: 0.95
A57: Consommation Défensive | B57: 15.98 | C57: 2.29
A58: Santé | B58: 3.76 | C58: 0.26
A59: Services Publics | B59: 3.16 | C59: 1.03
A60: Services de Communication | B60: 3.92 | C60: 1.18
A61: Énergie | B61: 6 | C61: 0.68
A62: Industriels | B62: 8.05 | C62: 0.75
A63: Technologie | B63: 7.98 | C63: 0.5
A65: Catégorie: Actions Etats-Unis Gdes Cap. Value
A67: Répartition par type d'actif | D67: 4200400.00%
B68: % Long | C68: % Court | D68: % des actifs nets
A69: Actions | B69: 86.31 | C69: 0 | D69: 86.31
A70: Obligations | B70: 0 | C70: 0.85 | D70: -0.85
A71: Liquidités | B71: 11.22 | C71: 0.25 | D71: 10.97
A72: Autres | B72: 3.57 | C72: 0 | D72: 3.57
A73: 10 premières lignes du portefeuille | C73: 4200400.00%
B74: Portefeuille
A75: Nombre total de lignes actions | B75: 24
A76: Nombre total de lignes obligations | B76: 1
A77: Poids des 10 premières lignes (%) | B77: 43.08
A78: Nom de la valeur | B78: Secteur | C78: Pays | D78: % des actifs
A79: Industria De Diseno Textil SA | C79: Espagne | D79: 6.66
A80: Banco Santander SA | C80: Espagne | D80: 6.33
A81: Royal Dutch Shell PLC Class A | C81: Royaume-uni | D81: 5.18
A82: Unilever NV DR | C82: Pays-bas | D82: 3.78
A83: Koninklijke Ahold NV | C83: Pays-bas | D83: 3.59
A84: Royal Philips NV | C84: Pays-bas | D84: 3.59
A85: Anheuser-Busch Inbev SA | C85: Belgique | D85: 3.51
A86: Siemens AG | C86: Allemagne | D86: 3.51
A87: Basf SE | C87: Allemagne | D87: 3.49
A88: International Consolidated Airlines G... | C88: Royaume-uni | D88: 3.44
A90: Hausse Baisse Nouveau dans le portefeuille
A91: Catégorie: Actions Etats-Unis Gdes Cap. Value

Sheet FR0007078811
A3: Valorisation | B3: Portefeuille actions | C3: Par rap./cat.
A4: Cours/Bénéfices | B4: 14.67 | C4: 0.93
A5: Cours/Actif net | B5: 1.4 | C5: 1
A6: Prix d'achat/vente | B6: 0.75 | C6: 0.83
A7: Cours/Cash flow | B7: 7.33 | C7: 1.16
A8: Facteur de retour sur dividendes | B8: 2.5 | C8: 0.7
A10: Projection de la croissance à long terme | B10: 11.8 | C10: 1.12
A11: Croissance des revenus historiques | B11: 0.8 | C11: -0.11
A12: Croissance des ventes | B12: -3.77 | C12: 0.83
A13: Croissance des cash-flows | B13: -4.21 | C13: 0.52
A14: Croissance de la valeur comptable | B14: -4.38 | C14: -15.71
A16: STYLE D'INVESTISSEMENTt
A18: Taille | C18: Par rap./cat.
A19: Capitalisation médiane | B19: EUR 16257 | C19: -
A20: Capitalisation | C20: % des actifs actions
A21: Géantes | C21: 29.15
A22: Grandes | C22: 45.18
A23: Moyennes | C23: 24.96
A24: Petites | C24: 0.71
A25: Micro | C25: 0
A27: Répartition par type d'actif | D27: 4200400.00%
B28: % Long | C28: % Court | D28: % des actifs nets
A29: Actions | B29: 98 | C29: 0 | D29: 98
A30: Obligations | B30: 0.39 | C30: 0 | D30: 0.39
A31: Liquidités | B31: 0.12 | C31: 0.03 | D31: 0.1
A32: Autres | B32: 1.52 | C32: 0 | D32: 1.52
A34: Répartition géographique | C34: 4200400.00%
B35: % des actifs actions | C35: Par rap./cat.
A36: Etats Unis | B36: 0.05 | C36: 0.04
A37: Canada | B37: 0 | C37: 0
A38: Amérique Latine | B38: 0 | C38: 0
A39: Royaume Uni | B39: 24.35 | C39: 0.9
A40: Eurozone | B40: 65.74 | C40: 1.19
A41: Europe - sauf Euro | B41: 9.67 | C41: 0.61
A42: Europe - Émergente | B42: 0.19 | C42: 1.18
A43: Afrique | B43: 0 | C43: 0
A44: Moyen Orient | B44: 0 | C44: 0
A45: Japon | B45: 0 | C45: 0
A46: Australasie | B46: 0 | C46: 0
A47: Asie - Pays Développés | B47: 0 | C47: 0
A48: Asie - Émergente | B48: 0 | C48: 0
A50: Catégorie: Actions Europe Gdes Cap. Value
A52: Répartition sectorielle | C52: 4200400.00%
B53: % des actifs actions | C53: Par rap./cat.
A54: Matériaux de Base | B54: 13.32 | C54: 1.68
A55: Consommation Cyclique | B55: 25.8 | C55: 2.04
A56: Services Financiers | B56: 12.54 | C56: 0.52
A57: Immobilier | B57: 0.08 | C57: 0.11
A58: Consommation Défensive | B58: 0.02 | C58: 0
A59: Santé | B59: 2.14 | C59: 0.22
A60: Services Publics | B60: 0.02 | C60: 0.01
A61: Services de Communication | B61: 17.28 | C61: 1.82
A62: Énergie | B62: 0.02 | C62: 0
A63: Industriels | B63: 16.03 | C63: 1.33
A64: Technologie | B64: 12.76 | C64: 2.73
A66: Catégorie: Actions Europe Gdes Cap. Value
A68: Répartition par type d'actif | D68: 4200400.00%
B69: % Long | C69: % Court | D69: % des actifs nets
A70: Actions | B70: 98 | C70: 0 | D70: 98
A71: Obligations | B71: 0.39 | C71: 0 | D71: 0.39
A72: Liquidités | B72: 0.12 | C72: 0.03 | D72: 0.1
A73: Autres | B73: 1.52 | C73: 0 | D73: 1.52
A74: 10 premières lignes du portefeuille | C74: 4200400.00%
B75: Portefeuille
A76: Nombre total de lignes actions | B76: 33
A77: Nombre total de lignes obligations | B77: 0
A78: Poids des 10 premières lignes (%) | B78: 39.75
A79: Nom de la valeur | B79: Secteur | C79: Pays | D79: % des actifs
A80: Capgemini | C80: France | D80: 5.07
A81: Deutsche Telekom AG | C81: Allemagne | D81: 4.74
A82: LVMH Moet Hennessy Louis Vuitton SA | C82: France | D82: 3.97
A83: Lloyds Banking Group PLC | C83: Royaume-uni | D83: 3.89
A84: Atos | C84: France | D84: 3.85
A85: Compagnie de Saint-Gobain | C85: France | D85: 3.78
A86: Lafarge SA | C86: France | D86: 3.76
A87: Telecom Italia SpA | C87: Italie | D87: 3.71
A88: BT Group PLC | C88: Royaume-uni | D88: 3.66
A89: Kingfisher PLC | C89: Royaume-uni | D89: 3.31
A91: Hausse Baisse Nouveau dans le portefeuille
A92: Catégorie: Actions Europe Gdes Cap. Value

Sheet FR0007016068
A3: Valorisation | B3: Portefeuille actions | C3: Par rap./cat.
A4: Cours/Bénéfices | B4: 15.26 | C4: 0.89
A5: Cours/Actif net | B5: 1.84 | C5: 0.97
A6: Prix d'achat/vente | B6: 1.4 | C6: 1.12
A7: Cours/Cash flow | B7: 7.53 | C7: 0.88
A8: Facteur de retour sur dividendes | B8: 2.21 | C8: 0.63
A10: Projection de la croissance à long terme | B10: 10.93 | C10: 1.13
A11: Croissance des revenus historiques | B11: 4.74 | C11: -1.03
A12: Croissance des ventes | B12: -3.77 | C12: 1
A13: Croissance des cash-flows | B13: -40.25 | C13: 6.3
A14: Croissance de la valeur comptable | B14: -3.8 | C14: 37.39
A16: STYLE D'INVESTISSEMENTt
A18: Taille | C18: Par rap./cat.
A19: Capitalisation médiane | B19: EUR 17320 | C19: -
A20: Capitalisation | C20: % des actifs actions
A21: Géantes | C21: 35.38
A22: Grandes | C22: 40.24
A23: Moyennes | C23: 12.96
A24: Petites | C24: 11.42
A25: Micro | C25: 0
A27: Répartition par type d'actif | D27: 4200400.00%
B28: % Long | C28: % Court | D28: % des actifs nets
A29: Actions | B29: 96.2 | C29: 0 | D29: 96.2
A30: Obligations | B30: 0 | C30: 0 | D30: 0
A31: Liquidités | B31: 3.79 | C31: 0 | D31: 3.79
A32: Autres | B32: 0 | C32: 0 | D32: 0
A34: Répartition géographique | C34: 4200400.00%
B35: % des actifs actions | C35: Par rap./cat.
A36: Etats Unis | B36: 0 | C36: 0
A37: Canada | B37: 0 | C37: 0
A38: Amérique Latine | B38: 0 | C38: 0
A39: Royaume Uni | B39: 28.64 | C39: 0.99
A40: Eurozone | B40: 53.87 | C40: 1.11
A41: Europe - sauf Euro | B41: 15.71 | C41: 0.75
A42: Europe - Émergente | B42: 0 | C42: 0
A43: Afrique | B43: 0 | C43: 0
A44: Moyen Orient | B44: 1.78 | C44: 38.41
A45: Japon | B45: 0 | C45: 0
A46: Australasie | B46: 0 | C46: 0
A47: Asie - Pays Développés | B47: 0 | C47: 0
A48: Asie - Émergente | B48: 0 | C48: 0
A50: Catégorie: Actions Europe Gdes Cap. Mixte
A52: Répartition sectorielle | C52: 4200400.00%
B53: % des actifs actions | C53: Par rap./cat.
A54: Matériaux de Base | B54: 14.08 | C54: 1.81
A55: Consommation Cyclique | B55: 15.93 | C55: 1.32
A56: Services Financiers | B56: 24.54 | C56: 1.18
A57: Santé | B57: 11.02 | C57: 0.76
A58: Services Publics | B58: 2.92 | C58: 1
A59: Services de Communication | B59: 6.44 | C59: 1.1
A60: Industriels | B60: 11.34 | C60: 1.01
A61: Technologie | B61: 13.72 | C61: 2.33
A63: Catégorie: Actions Europe Gdes Cap. Mixte
A65: Répartition par type d'actif | D65: 4200400.00%
B66: % Long | C66: % Court | D66: % des actifs nets
A67: Actions | B67: 96.2 | C67: 0 | D67: 96.2
A68: Obligations | B68: 0 | C68: 0 | D68: 0
A69: Liquidités | B69: 3.79 | C69: 0 | D69: 3.79
A70: Autres | B70: 0 | C70: 0 | D70: 0
A71: 10 premières lignes du portefeuille | C71: 4200400.00%
B72: Portefeuille
A73: Nombre total de lignes actions | B73: 49
A74: Nombre total de lignes obligations | B74: 0
A75: Poids des 10 premières lignes (%) | B75: 29.89
A76: Nom de la valeur | B76: Secteur | C76: Pays | D76: % des actifs
A77: Bayer AG | C77: Allemagne | D77: 3.98
A78: ING Groep N.V. | C78: Pays-bas | D78: 3.88
A79: Prudential PLC | C79: Royaume-uni | D79: 3.63
A80: SAP SE | C80: Allemagne | D80: 3.15
A81: Barclays PLC | C81: Royaume-uni | D81: 2.87
A82: Johnson Matthey PLC | C82: Royaume-uni | D82: 2.67
A83: Pandora AS | C83: Danemark | D83: 2.56
A84: Zodiac Aerospace | C84: France | D84: 2.42
A85: UniCredit SpA | C85: Italie | D85: 2.38
A86: Vodafone Group PLC | C86: Royaume-uni | D86: 2.36
A88: Hausse Baisse Nouveau dans le portefeuille
A89: Catégorie: Actions Europe Gdes Cap. Mixte

Sheet FR0000987968
A3: STYLE D'INVESTISSEMENTt
A5: Taille | C5: Par rap./cat.
A6: Capitalisation médiane | B6: EUR 32485 | C6: -
A7: Capitalisation | C7: % des actifs actions
A8: Géantes | C8: 42.78
A9: Grandes | C9: 50.34
A10: Moyennes | C10: 6.88
A11: Petites | C11: 0
A12: Micro | C12: 0
A14: Valorisation | B14: Portefeuille actions | C14: Par rap./cat.
A15: Cours/Bénéfices | B15: 16.72 | C15: 1.18
A16: Cours/Actif net | B16: 1.81 | C16: 1.59
A17: Prix d'achat/vente | B17: 0.87 | C17: 1.14
A18: Cours/Cash flow | B18: 7.41 | C18: 2.72
A19: Facteur de retour sur dividendes | B19: 2.65 | C19: 1.71
A21: Projection de la croissance à long terme | B21: 11.35 | C21: 2.1
A22: Croissance des revenus historiques | B22: -6.26 | C22: -0.07
A23: Croissance des ventes | B23: -4.18 | C23: -0.43
A24: Croissance des cash-flows | B24: -10.21 | C24: -2.05
A25: Croissance de la valeur comptable | B25: -1.83 | C25: -0.11
A27: Répartition par type d'actif | D27: 4209400.00%
B28: % Long | C28: % Court | D28: % des actifs nets
A29: Actions | B29: 98.58 | C29: 0 | D29: 98.58
A30: Obligations | B30: 0 | C30: 2.31 | D30: -2.31
A31: Liquidités | B31: 6.44 | C31: 4.23 | D31: 2.21
A32: Autres | B32: 4.01 | C32: 2.48 | D32: 1.53
A34: Répartition géographique | C34: 4209400.00%
B35: % des actifs actions | C35: Par rap./cat.
A36: Etats Unis | B36: 0 | C36: 0
A37: Canada | B37: 0 | C37: -
A38: Amérique Latine | B38: 0 | C38: 0
A39: Royaume Uni | B39: 0 | C39: -
A40: Eurozone | B40: 100 | C40: 1055.39
A41: Europe - sauf Euro | B41: 0 | C41: -
A42: Europe - Émergente | B42: 0 | C42: -
A43: Afrique | B43: 0 | C43: -
A44: Moyen Orient | B44: 0 | C44: -
A45: Japon | B45: 0 | C45: 0
A46: Australasie | B46: 0 | C46: -
A47: Asie - Pays Développés | B47: 0 | C47: -
A48: Asie - Émergente | B48: 0 | C48: -
A50: Catégorie: Actions Japon Grandes Cap.
A52: Répartition sectorielle | C52: 4209400.00%
B53: % des actifs actions | C53: Par rap./cat.
A54: Matériaux de Base | B54: 7.76 | C54: 0.91
A55: Consommation Cyclique | B55: 7.2 | C55: 0.35
A56: Services Financiers | B56: 17.2 | C56: 1.09
A57: Consommation Défensive | B57: 12.4 | C57: 2.06
A58: Santé | B58: 4.1 | C58: 0.78
A59: Services Publics | B59: 4.07 | C59: 2.84
A60: Énergie | B60: 10.09 | C60: 4.65
A61: Industriels | B61: 21.36 | C61: 1.12
A62: Technologie | B62: 15.83 | C62: 1.21
A64: Catégorie: Actions Japon Grandes Cap.
A66: Répartition par type d'actif | D66: 4209400.00%
B67: % Long | C67: % Court | D67: % des actifs nets
A68: Actions | B68: 98.58 | C68: 0 | D68: 98.58
A69: Obligations | B69: 0 | C69: 2.31 | D69: -2.31
A70: Liquidités | B70: 6.44 | C70: 4.23 | D70: 2.21
A71: Autres | B71: 4.01 | C71: 2.48 | D71: 1.53
A72: 10 premières lignes du portefeuille | C72: 4209400.00%
B73: Portefeuille
A74: Nombre total de lignes actions | B74: 21
A75: Nombre total de lignes obligations | B75: 1
A76: Poids des 10 premières lignes (%) | B76: -
A77: Nom de la valeur | B77: Secteur | C77: Pays | D77: % des actifs
A78: Aucune donnée disponible
A80: Hausse Baisse Nouveau dans le portefeuille
A81: Catégorie: Actions Japon Grandes Cap.

Sheet FR0010149302
A3: STYLE D'INVESTISSEMENTt
A5: Taille | C5: Par rap./cat.
A6: Capitalisation médiane | B6: EUR 21718 | C6: -
A7: Capitalisation | C7: % des actifs actions
A8: Géantes | C8: 52.43
A9: Grandes | C9: 37.93
A10: Moyennes | C10: 9.65
A11: Petites | C11: 0
A12: Micro | C12: 0
A14: Valorisation | B14: Portefeuille actions | C14: Par rap./cat.
A15: Cours/Bénéfices | B15: 14.83 | C15: 1.15
A16: Cours/Actif net | B16: 2.03 | C16: 1.3
A17: Prix d'achat/vente | B17: 0.78 | C17: 0.67
A18: Cours/Cash flow | B18: 3.81 | C18: 0.91
A19: Facteur de retour sur dividendes | B19: 2.14 | C19: 0.68
A21: Projection de la croissance à long terme | B21: 9.14 | C21: 0.82
A22: Croissance des revenus historiques | B22: -9.21 | C22: 0.66
A23: Croissance des ventes | B23: 5.83 | C23: -0.81
A24: Croissance des cash-flows | B24: 3.79 | C24: 1
A25: Croissance de la valeur comptable | B25: 10.71 | C25: -0.75
A27: Répartition par type d'actif | D27: 4209400.00%
B28: % Long | C28: % Court | D28: % des actifs nets
A29: Actions | B29: 91.8 | C29: 0 | D29: 91.8
A30: Obligations | B30: 0 | C30: 0 | D30: 0
A31: Liquidités | B31: 7.64 | C31: 0 | D31: 7.64
A32: Autres | B32: 0.56 | C32: 0 | D32: 0.56
A34: Répartition géographique | C34: 4209400.00%
B35: % des actifs actions | C35: Par rap./cat.
A36: Etats Unis | B36: 4.97 | C36: 5.27
A37: Canada | B37: 0 | C37: 0
A38: Amérique Latine | B38: 14.02 | C38: 1.06
A39: Royaume Uni | B39: 3.8 | C39: 1.92
A40: Eurozone | B40: 0.83 | C40: 0.4
A41: Europe - sauf Euro | B41: 0 | C41: 0
A42: Europe - Émergente | B42: 4.81 | C42: 0.65
A43: Afrique | B43: 1.37 | C43: 0.16
A44: Moyen Orient | B44: 6.6 | C44: 6.36
A45: Japon | B45: 2.72 | C45: 12.53
A46: Australasie | B46: 0 | C46: 0
A47: Asie - Pays Développés | B47: 16.1 | C47: 0.7
A48: Asie - Émergente | B48: 44.78 | C48: 1.11
A50: Catégorie: Actions Marchés Emergents
A52: Répartition sectorielle | C52: 4209400.00%
B53: % des actifs actions | C53: Par rap./cat.
A54: Consommation Cyclique | B54: 21.79 | C54: 1.95
A55: Services Financiers | B55: 10.15 | C55: 0.4
A56: Immobilier | B56: 2.63 | C56: 1.13
A57: Consommation Défensive | B57: 16.64 | C57: 1.62
A58: Santé | B58: 3.66 | C58: 1.17
A59: Services de Communication | B59: 7.75 | C59: 1.11
A60: Énergie | B60: 2.17 | C60: 0.4
A61: Industriels | B61: 8.78 | C61: 1.41
A62: Technologie | B62: 26.45 | C62: 1.36
A64: Catégorie: Actions Marchés Emergents
A66: Répartition par type d'actif | D66: 4209400.00%
B67: % Long | C67: % Court | D67: % des actifs nets
A68: Actions | B68: 91.8 | C68: 0 | D68: 91.8
A69: Obligations | B69: 0 | C69: 0 | D69: 0
A70: Liquidités | B70: 7.64 | C70: 0 | D70: 7.64
A71: Autres | B71: 0.56 | C71: 0 | D71: 0.56
A72: 10 premières lignes du portefeuille | C72: 4209400.00%
B73: Portefeuille
A74: Nombre total de lignes actions | B74: 43
A75: Nombre total de lignes obligations | B75: 0
A76: Poids des 10 premières lignes (%) | B76: 38.09
A77: Nom de la valeur | B77: Secteur | C77: Pays | D77: % des actifs
A78: Taiwan Semiconductor Manufacturing Co... | C78: Taiwan | D78: 5.73
A79: Bharti Airtel Ltd | C79: Inde | D79: 4.09
A80: Qingdao Haier Co Ltd | C80: Chine | D80: 4.08
A81: Wal - Mart de Mexico SAB de CV Class V | C81: Mexique | D81: 3.85
A82: Check Point Software Technologies Ltd | C82: Israel | D82: 3.74
A83: Samsung Electronics Co Ltd | C83: Republique de coree (coree du sud) | D83: 3.66
A84: Infosys Ltd ADR | C84: Inde | D84: 3.42
A85: SABMiller PLC | C85: Royaume-uni | D85: 3.36
A86: Tata Motors Ltd | C86: Inde | D86: 3.1
A87: Shanghai International Airport Co Ltd | C87: Chine | D87: 3.05
A89: Hausse Baisse Nouveau dans le portefeuille
A90: Catégorie: Actions Marchés Emergents
